fUST/lending_fUST_20260107
["ID","MTS","AMOUNT","RATE_DAILY","PERIOD"]
[400683231,1767778277819,-500.0,0.00028767,2]
[400683232,1767778277828,-626.98541799,0.00028767,2]
[400683233,1767778277838,-500.0,0.00028767,2]
[400683234,1767778277847,-485.25164265,0.00028767,2]
[400683235,1767778277856,-500.0,0.00028767,2]
[400683236,1767778277866,-197.42053416,0.00028767,2]
[400683237,1767778277875,-500.0,0.00028767,2]
[400683238,1767778277885,-494.3068847,0.00028767,2]
[400683239,1767778277895,-500.0,0.00028767,2]
[400683240,1767778277909,-500.0,0.00028767,2]
[400683241,1767778277918,-285.27558261,0.00028767,2]
[400683242,1767778277928,-524.2646963,0.00028767,2]
[400683243,1767778277938,-1141.10233045,0.00028767,2]
[400683244,1767778277947,-2567.48024352,0.00028767,2]
[400683245,1767778277956,-278.02017742,0.00028767,2]
[400683246,1767778277966,-463.66455521,0.00028767,2]
[400683247,1767778277976,-4564.40932181,0.00028767,2]
[400683248,1767778277986,-7131.88956533,0.00028767,2]
[400683249,1767778277996,-10269.92097408,0.00028767,2]
[400683250,1767778278007,-500.0,0.00028767,2]
[400683251,1767778278017,-181.78079938,0.00028767,2]
[400683252,1767778278027,-500.0,0.00028767,2]
[400683253,1767778278037,-500.0,0.00028767,2]
[400683254,1767778278047,-500.0,0.00028767,2]
[400683255,1767778278057,-500.0,0.00028767,2]
[400683256,1767778278067,-178.97567545,0.00028767,2]
[400683257,1767778278078,-373.36493827,0.00028767,2]
[400683258,1767778278087,-500.0,0.00028767,2]
[400683259,1767778278098,-500.0,0.00028767,2]
[400683260,1767778278107,-500.0,0.00028767,2]
[400683261,1767778278116,-157.53465231,0.00028767,2]
[400683262,1767778278126,-500.0,0.00028767,2]
[400683263,1767778278135,-500.0,0.00028767,2]
[400683264,1767778278146,-637.59,0.00028767,2]
[400683265,1767778278156,-500.0,0.00028767,2]
[400683266,1767778278166,-151.0,0.00028767,7]
[400683267,1767778278176,-500.0,0.00028767,2]
[400683268,1767778278186,-219.45873194,0.00028767,2]
[400683269,1767778278196,-500.0,0.00028767,2]
[400683270,1767778278206,-328.70746168,0.00028767,2]
[400683271,1767778278216,-151.0,0.00028767,7]
[400683272,1767778278226,-151.0,0.00028767,7]
[400683273,1767778278235,-175.703798,0.00028767,7]
[400683274,1767778278256,-1000.0,0.00028767,2]
[400683275,1767778278273,-500.0,0.00028767,2]
[400683276,1767778278286,-151.0,0.00028767,7]
[400683277,1767778278302,-151.0,0.00028767,7]
[400683278,1767778278317,-500.0,0.00028767,2]
[400683279,1767778278333,-1626.684503,0.00028767,7]
[400683280,1767778278350,-1626.684503,0.00028767,7]
[400683281,1767778278367,-1626.684503,0.00028767,7]
[400683282,1767778278382,-1626.684503,0.00028767,7]
[400683283,1767778278396,-609.666208,0.00028767,7]
[400683284,1767778278413,-609.666208,0.00028767,7]
[400683285,1767778278429,-609.666208,0.00028767,7]
[400683286,1767778278441,-609.666208,0.00028767,7]
[400683287,1767778278461,-500.0,0.00028767,2]
[400683288,1767778278477,-151.0,0.00028767,7]
[400683289,1767778278492,-157.563377,0.00028767,7]
[400683290,1767778278511,-500.0,0.00028767,2]
[400683291,1767778278529,-500.0,0.00028767,2]
[400683292,1767778278544,-327.42862214,0.00028767,2]
[400683293,1767778278555,-151.0,0.00028767,7]
[400683294,1767778278570,-151.0,0.00028767,7]
[400683295,1767778278587,-151.0,0.00028767,7]
[400683296,1767778278599,-500.0,0.00028767,2]
[400683297,1767778278612,-214.456704,0.00028767,7]
[400683298,1767778278626,-214.456704,0.00028767,7]
[400683299,1767778278639,-500.0,0.00028767,2]
[400683300,1767778278654,-640.13833819,0.00028767,2]
[400683301,1767778278667,-214.456704,0.00028767,7]
[400683302,1767778278680,-214.456704,0.00028767,7]
[400683303,1767778278694,-619.77997003,0.00028767,2]
[400683304,1767778278706,-500.0,0.00028767,2]
[400683305,1767778278720,-581.31244025,0.00028767,2]
[400683306,1767778278733,-500.0,0.00028767,2]
[400683307,1767778278746,-500.0,0.00028767,2]
[400683308,1767778278759,-500.0,0.00028767,2]
[400683309,1767778278771,-500.0,0.00028767,2]
[400683310,1767778278785,-194.927323,0.00028767,7]
[400683311,1767778278797,-194.927323,0.00028767,7]
[400683312,1767778278811,-194.927323,0.00028767,7]
[400683313,1767778278823,-194.927323,0.00028767,7]
[400683314,1767778278836,-151.0,0.00028767,7]
[400683315,1767778278849,-640.87179641,0.00028767,2]
[400683316,1767778278861,-500.0,0.00028767,2]
[400683317,1767778278874,-500.0,0.00028767,2]
[400683318,1767778278886,-305.99608729,0.00028767,2]
[400683319,1767778278899,-500.0,0.00028767,2]
[400683320,1767778278912,-151.0,0.00028767,7]
[400683321,1767778278924,-200.632316,0.00028767,7]
[400683322,1767778278936,-151.0,0.00028767,7]
[400683323,1767778278949,-200.632316,0.00028767,7]
[400683324,1767778278960,-200.632316,0.00028767,7]
[400683325,1767778278973,-200.632316,0.00028767,7]
[400683326,1767778278986,-500.0,0.00028767,2]
[400683327,1767778278998,-561.94755424,0.00028767,2]
[400683328,1767778279011,-3962.5,0.00028767,2]
[400683329,1767778279025,-500.0,0.00028767,2]
[400683330,1767778279037,-154.60987058,0.00028767,2]
[400683331,1767778279051,-582.84,0.00028767,2]
[400683332,1767778279065,-500.0,0.00028767,2]
[400683333,1767778279078,-500.0,0.00028767,2]
[400683334,1767778279091,-500.0,0.00028767,2]
[400683335,1767778279104,-500.0,0.00028767,2]
[400683336,1767778279117,-500.0,0.00028767,2]
[400683337,1767778279130,-500.0,0.00028767,2]
[400683338,1767778279142,-500.0,0.00028767,2]
[400683339,1767778279155,-500.0,0.00028767,2]
[400683340,1767778279168,-500.0,0.00028767,2]
[400683341,1767778279181,-500.0,0.00028767,2]
[400683342,1767778279194,-500.0,0.00028767,2]
[400683343,1767778279208,-500.0,0.00028767,2]
[400683344,1767778279220,-500.0,0.00028767,2]
[400683345,1767778279233,-725.03,0.00028767,2]
[400683346,1767778279245,-500.0,0.00028767,2]
[400683347,1767778279258,-500.0,0.00028767,2]
[400683348,1767778279270,-500.0,0.00028767,2]
[400683349,1767778279283,-500.0,0.00028767,2]
[400683350,1767778279296,-500.0,0.00028767,2]
[400683352,1767778279308,-500.0,0.00028767,2]
[400683353,1767778279320,-500.0,0.00028767,2]
[400683354,1767778279334,-500.0,0.00028767,2]
[400683355,1767778279346,-500.0,0.00028767,2]
[400683356,1767778279359,-500.0,0.00028767,2]
[400683357,1767778279372,-678.0,0.00028767,2]
[400683358,1767778279384,-500.0,0.00028767,2]
[400683359,1767778279398,-500.0,0.00028767,2]
[400683360,1767778279410,-2251.87,0.00028767,2]
[400683361,1767778279423,-1000.0,0.00028767,2]
[400683362,1767778279436,-956.27,0.00028767,2]
[400683363,1767778279449,-500.0,0.00028767,2]
[400683364,1767778279462,-441.10124557,0.00028767,2]
[400683365,1767778279474,-500.0,0.00028767,2]
[400683366,1767778279487,-500.0,0.00028767,2]
[400683367,1767778279500,-14665.45,0.00028767,2]
[400683368,1767778279514,-500.0,0.00028767,2]
[400683369,1767778279527,-612.66554884,0.00028767,2]
[400683370,1767778279539,-500.0,0.00028767,2]
[400683371,1767778279552,-596.51574051,0.00028767,2]
[400683372,1767778279565,-500.0,0.00028767,2]
[400683373,1767778279580,-661.34,0.00028767,2]
[400683374,1767778279594,-284.84999184,0.00028767,2]
[400683375,1767778279606,-500.0,0.00028767,2]
[400683376,1767778279618,-395.05101426,0.00028767,2]
[400683377,1767778279631,-909.99,0.00028767,2]
[400683378,1767778279647,-502.05979072,0.00028767,2]
[400683379,1767778279661,-4613.91,0.00028767,2]
[400683380,1767778279674,-3024.23,0.00028767,2]
[400683381,1767778279688,-500.0,0.00028767,2]
[400683382,1767778279700,-927.69,0.00028767,2]
[400683383,1767778279713,-500.0,0.00028767,2]
[400683384,1767778279725,-500.0,0.00028767,2]
[400683385,1767778279738,-500.0,0.00028767,2]
[400683386,1767778279750,-500.0,0.00028767,2]
[400683387,1767778279763,-500.0,0.00028767,2]
[400683388,1767778279776,-500.0,0.00028767,2]
[400683389,1767778279788,-160.97172123,0.00028767,2]
[400683390,1767778279800,-717.62,0.00028767,2]
[400683391,1767778279812,-500.0,0.00028767,2]
[400683392,1767778279824,-500.0,0.00028767,2]
[400683393,1767778279836,-601.36,0.00028767,2]
[400683394,1767778279848,-500.0,0.00028767,2]
[400683395,1767778279861,-500.0,0.00028767,2]
[400683396,1767778279874,-2787.6,0.00028767,2]
[400683397,1767778279887,-500.0,0.00028767,2]
[400683398,1767778279900,-500.0,0.00028767,2]
[400683399,1767778279912,-500.0,0.00028767,2]
[400683400,1767778280136,-500.0,0.00028767,2]
[400683401,1767778280146,-500.0,0.00028767,2]
[400683402,1767778280156,-500.0,0.00028767,2]
[400683403,1767778280166,-500.0,0.00028767,2]
[400683404,1767778280175,-500.0,0.00028767,2]
[400683405,1767778280185,-500.0,0.00028767,2]
[400683406,1767778280195,-366.0246983,0.00028767,2]
[400683407,1767778280204,-500.0,0.00028767,2]
[400683408,1767778280214,-200.0,0.00028767,2]
[400683409,1767778280223,-1076.6,0.00028767,2]
[400683410,1767778280233,-505.05,0.00028767,2]
[400683411,1767778280243,-756.53,0.00028767,2]
[400683412,1767778280252,-2410.47,0.00028767,4]
[400683413,1767778280262,-500.0,0.00028767,2]
[400683414,1767778280272,-500.0,0.00028767,2]
[400683415,1767778280282,-195.67,0.00028767,2]
[400683416,1767778280291,-500.0,0.00028767,2]
[400683417,1767778280301,-500.0,0.00028767,2]
[400683418,1767778280311,-500.0,0.00028767,2]
[400683419,1767778280322,-500.0,0.00028767,2]
[400683420,1767778280331,-836.4,0.00028767,2]
[400683421,1767778280341,-853.68,0.00028767,2]
[400683422,1767778280351,-689.83,0.00028767,2]
[400683423,1767778280360,-500.0,0.00028767,2]
[400683424,1767778280369,-222.39624112,0.00028767,2]
[400683425,1767778280379,-301.85499701,0.00028767,2]
[400683426,1767778280390,-604.98079677,0.00028767,2]
[400683427,1767778280400,-500.0,0.00028767,2]
[400683428,1767778280411,-500.0,0.00028767,2]
[400683429,1767778280421,-500.0,0.00028767,2]
[400683430,1767778280430,-271.00434571,0.00028767,2]
[400683431,1767778280440,-319.89287406,0.00028767,2]
[400683432,1767778280449,-500.0,0.00028767,2]
[400683433,1767778280458,-690.11,0.00028767,2]
[400683434,1767778280467,-500.0,0.00028767,2]
[400683435,1767778280477,-290.50830417,0.00028767,2]
[400683436,1767778280487,-500.0,0.00028767,2]
[400683437,1767778280496,-500.0,0.00028767,2]
[400683438,1767778280506,-500.0,0.00028767,2]
[400683439,1767778280520,-500.0,0.00028767,2]
[400683440,1767778280530,-500.0,0.00028767,2]
[400683441,1767778280541,-500.0,0.00028767,2]
[400683442,1767778280551,-731.35,0.00028767,2]
[400683443,1767778280560,-3088.57,0.00028767,2]
[400683444,1767778280570,-2000.0,0.00028797,7]
[400683445,1767778280581,-172.38864068,0.000288,7]
[400683446,1767778280591,-25963.54,0.000289,2]
[400683447,1767778280600,-890.22929937,0.00029,2]
[400683448,1767778280609,-200020.53823055,0.00029,30]
[400683449,1767778280622,-1041.66666667,0.00029,3]
[400683450,1767778280633,-180.22708613,0.00029038,2]
[400683451,1767778280642,-5597.0348848,0.00029041,2]
[400683452,1767778280652,-500.0,0.00029041,2]
[400683453,1767778280661,-300.968668,0.00029041,2]
[400683454,1767778280671,-836.74,0.00029041,2]
[400683455,1767778280681,-533.24336171,0.00029041,2]
[400683456,1767778280691,-500.0,0.00029041,2]
[400683457,1767778280701,-500.0,0.00029041,2]
[400683458,1767778280711,-285.82690785,0.00029041,2]
[400683459,1767778280720,-500.0,0.00029041,2]
[400683460,1767778280730,-164.96319497,0.00029041,2]
[400683461,1767778280740,-500.0,0.00029041,2]
[400683462,1767778280750,-436.62884109,0.00029041,2]
[400683463,1767778280759,-500.0,0.00029041,2]
[400683464,1767778280768,-500.0,0.00029041,2]
[400683465,1767778280778,-500.0,0.00029041,2]
[400683466,1767778280787,-390.16943318,0.00029041,2]
[400683467,1767778280796,-548.79,0.00029041,2]
[400683468,1767778280805,-500.0,0.00029041,2]
[400683469,1767778280814,-500.0,0.00029041,2]
[400683470,1767778280825,-500.0,0.00029041,2]
[400683471,1767778280834,-500.71208436,0.00029041,2]
[400683472,1767778280843,-631.35384667,0.00029041,2]
[400683473,1767778280853,-500.0,0.00029041,2]
[400683474,1767778280862,-633.2804934,0.00029041,2]
[400683475,1767778280871,-330.7847672,0.00029041,2]
[400683476,1767778280881,-418.63105602,0.00029041,2]
[400683477,1767778280891,-315.17480256,0.00029041,2]
[400683478,1767778280900,-150.28353758,0.00029041,2]
[400683479,1767778280909,-246.60117318,0.00029041,2]
[400683480,1767778280918,-913.08,0.00029041,2]
[400683481,1767778280928,-339.81281698,0.00029041,2]
[400683482,1767778280937,-557.84,0.00029041,2]
[400683483,1767778280947,-500.0,0.00029041,2]
[400683484,1767778280956,-320.99194648,0.00029041,2]
[400683485,1767778280965,-500.0,0.00029041,2]
[400683486,1767778280974,-500.0,0.00029041,2]
[400683487,1767778280983,-500.0,0.00029041,2]
[400683488,1767778280992,-500.0,0.00029041,2]
[400683489,1767778281002,-275.94591395,0.00029041,2]
[400683490,1767778281011,-500.0,0.00029041,2]
[400683491,1767778281021,-500.0,0.00029041,2]
[400683492,1767778281030,-200.0,0.00029041,7]
[400683493,1767778281039,-500.0,0.00029041,2]
[400683494,1767778281049,-200.0,0.00029041,7]
[400683495,1767778281058,-200.0,0.00029041,7]
[400683496,1767778281068,-500.0,0.00029041,2]
[400683497,1767778281078,-200.0,0.00029041,7]
[400683498,1767778281088,-151.0,0.00029041,7]
[400683499,1767778281098,-500.0,0.00029041,2]
[400683500,1767778281108,-151.0,0.00029041,7]
[400683501,1767778281117,-151.0,0.00029041,7]
[400683502,1767778281127,-410.65012671,0.00029041,2]
[400683503,1767778281136,-500.0,0.00029041,2]
[400683504,1767778281146,-500.0,0.00029041,2]
[400683505,1767778281155,-500.0,0.00029041,2]
[400683506,1767778281165,-637.59,0.00029041,2]
[400683507,1767778281175,-500.0,0.00029041,2]
[400683508,1767778281184,-564.56926368,0.00029041,2]
[400683509,1767778281194,-500.0,0.00029041,2]
[400683510,1767778281203,-607.46338007,0.00029041,2]
[400683511,1767778285040,169.22,7.583e-05,2]
[400683512,1767778285195,253.83,7.928e-05,2]
[400683513,1767778285295,338.44,8.273e-05,2]
[400683514,1767778285341,423.05,8.617e-05,2]
[400683515,1767778285451,507.66,8.962e-05,2]
[400683517,1767778285536,592.26,9.307e-05,2]
[400683518,1767778285670,676.87,9.651e-05,2]
[400683519,1767778286023,761.48,9.996e-05,2]
[400683520,1767778286151,846.09,0.00010341,2]
[400683526,1767778293428,500.0,0.00012126,2]
[400683527,1767778293471,500.0,0.00012126,2]
[400683528,1767778293502,185.0828466,0.00012126,2]
[400683529,1767778293540,500.0,0.00012126,2]
[400683530,1767778293573,375.12513722,0.00012126,2]
[400683531,1767778293606,537.39889619,0.00012126,2]
[400683532,1767778293644,500.0,0.00012126,2]
[400683533,1767778293684,200.0,0.00012126,2]
[400683534,1767778293877,416.92964555,0.00012126,2]
[400683545,1767778312906,532.38053776,0.00012066,2]
[400683547,1767778313292,500.0,0.00012126,2]
[400683548,1767778313321,500.0,0.00012126,2]
[400683549,1767778313360,184.19293668,0.00012126,2]
[400683550,1767778313386,315.80706332,0.00012126,2]
[400683551,1767778313416,500.0,0.00012126,2]
[400683552,1767778313448,500.0,0.00012126,2]
[400683553,1767778313672,500.0,0.00012126,2]
[400683554,1767778313704,500.0,0.00012126,2]
[400683555,1767778313742,500.0,0.00012126,2]
[400683556,1767778313790,500.0,0.00012126,2]
[400683557,1767778314031,500.0,0.00012126,2]
[400683558,1767778314066,500.0,0.00012126,2]
[400683559,1767778314108,500.0,0.00012126,2]
[400683560,1767778314350,500.0,0.00012126,2]
[400683561,1767778314384,500.0,0.00012126,2]
[400683562,1767778315060,181.69386299,0.00012126,2]
[400683563,1767778315934,298.46211541,0.00012126,2]
[400683568,1767778325268,300.0,0.00012126,2]
[400683570,1767778327539,308.8365997,0.00012126,2]
[400683576,1767778338496,168.77,7.897e-05,2]
[400683577,1767778339026,202.53,8.213e-05,2]
[400683580,1767778340750,236.28,8.528e-05,2]
[400683581,1767778341208,270.04,8.844e-05,2]
[400683582,1767778341670,303.79,9.16e-05,2]
[400683591,1767778357635,-275.73,9.476e-05,2]
[400683592,1767778358860,-61.82,9.476e-05,2]
[400683602,1767778382379,300.0,0.00012126,2]
[400683604,1767778387535,300.0,0.00012126,2]
[400683630,1767778435556,5000.0,0.00012127,2]
[400683637,1767778442378,300.0,0.00012126,2]
[400683638,1767778444184,3976.37,0.00012127,2]
[400683647,1767778460182,5000.0,0.00012005,2]
[400683650,1767778462244,3398.7973873,0.00011248,2]
[400683654,1767778476180,1601.2126127,0.00012005,2]
[400683655,1767778476203,3398.7873873,0.00012005,2]
[400683658,1767778484011,5000.0,0.00012005,2]
[400683674,1767778506230,1601.2226127,0.00012005,2]
[400683675,1767778506254,3398.7773873,0.00012005,2]
[400683705,1767778539828,513.0,0.00028141,120]
[400683706,1767778541247,513.0,0.00029548,120]
[400683708,1767778543037,-5000.0,0.00012005,2]
[400683710,1767778544402,0.01,7.229e-05,2]
[400683711,1767778544425,166.85,7.229e-05,2]
[400683712,1767778544800,222.47,7.543e-05,2]
[400683713,1767778545224,278.09,7.857e-05,2]
[400683714,1767778545658,333.71,8.171e-05,2]
[400683715,1767778546066,389.33,8.486e-05,2]
[400683716,1767778546482,444.95,8.8e-05,2]
[400683717,1767778546943,500.57,9.114e-05,2]
[400683718,1767778547382,556.18,9.428e-05,2]
[400683720,1767778551447,5000.0,0.00012005,2]
[400683737,1767778574054,2107.86,0.00012005,2]
[400683738,1767778574078,2892.14,0.00012005,2]
[400683745,1767778596856,5000.0,0.00012005,2]
[400683755,1767778619317,150.47,8.7e-05,2]
[400683756,1767778619354,1957.4,0.00012005,2]
[400683757,1767778619378,3042.6,0.00012005,2]
[400683758,1767778619408,169.28,9.01e-05,2]
[400683763,1767778627206,5000.0,0.00012005,2]
[400683769,1767778642494,1788.13,0.00012005,2]
[400683770,1767778642519,3211.87,0.00012005,2]
[400683774,1767778650772,5000.0,0.00012005,2]
[400683780,1767778666133,1788.14,0.00012005,2]
[400683781,1767778666156,3211.86,0.00012005,2]
[400683785,1767778674076,5000.0,0.00012005,2]
[400683791,1767778680489,199.47,5.994e-05,2]
[400683792,1767778680864,199.46,5.994e-05,2]
[400683794,1767778686530,169.04,8.045e-05,2]
[400683795,1767778687005,197.22,8.354e-05,2]
[400683796,1767778687424,225.39,8.664e-05,2]
[400683797,1767778687832,253.57,8.973e-05,2]
[400683798,1767778688287,281.74,9.283e-05,2]
[400683799,1767778690421,262.26,0.00012005,2]
[400683800,1767778690446,4737.74,0.00012005,2]
[400683801,1767778698318,2528.10950533,0.00012005,2]
[400683802,1767778714126,2734.16049467,0.00012005,2]
[400683803,1767778714149,1071.87601975,0.00012005,2]
[400683804,1767778743894,342.12924589,0.00012005,2]
[400683810,1767778751732,259.34177295,0.00012005,2]
[400683811,1767778753964,181.03,6.579e-05,2]
[400683812,1767778754411,362.06,6.892e-05,2]
[400683813,1767778754834,543.08,7.205e-05,2]
[400683814,1767778755266,724.11,7.519e-05,2]
[400683815,1767778755685,905.14,7.832e-05,2]
[400683816,1767778756102,1086.17,8.145e-05,2]
[400683817,1767778756520,1267.2,8.458e-05,2]
[400683819,1767778756943,1448.22,8.772e-05,2]
[400683820,1767778757370,1629.25,9.085e-05,2]
[400683821,1767778757788,180.40296141,9.398e-05,2]
[400683822,1767778757815,1629.87703859,9.398e-05,2]
[400683823,1767778767202,5000.0,0.00012005,2]
[400683824,1767778782462,2664.88096057,0.00012005,2]
[400683827,1767778828016,436.0,0.0002795,120]
[400683828,1767778829525,436.0,0.00029348,120]
[400683829,1767778830740,230.76,6.497e-05,2]
[400683830,1767778831189,461.51,6.807e-05,2]
[400683831,1767778831623,692.27,7.116e-05,2]
[400683832,1767778832104,923.03,7.425e-05,2]
[400683833,1767778832514,1153.79,7.735e-05,2]
[400683834,1767778832949,1384.54,8.044e-05,2]
[400683835,1767778833361,1615.3,8.354e-05,2]
[400683836,1767778833781,1846.06,8.663e-05,2]
[400683837,1767778834208,2076.82,8.972e-05,2]
[400683841,1767778838208,-281.12842569,9.282e-05,2]
[400683842,1767778839669,-1160.03892237,9.282e-05,2]
[400683846,1767778841705,-227.92739227,9.282e-05,2]
[400683851,1767778841965,-638.47525967,9.282e-05,2]
[400683876,1767778897620,-357.02846024,0.00011126,2]
[400683877,1767778900383,-172.02805785,0.00011126,2]
[400683881,1767778909834,158.18,6.763e-05,2]
[400683882,1767778910246,237.26,7.07e-05,2]
[400683883,1767778910650,316.35,7.378e-05,2]
[400683886,1767778911071,395.44,7.685e-05,2]
[400683887,1767778911504,474.53,7.993e-05,2]
[400683888,1767778911931,553.61,8.3e-05,2]
[400683889,1767778912859,632.7,8.608e-05,2]
[400683890,1767778913320,711.79,8.915e-05,2]
[400683892,1767778913785,790.88,9.222e-05,2]
[400683894,1767778942688,-271.73638983,0.00011014,2]
[400683898,1767778986771,153.64,8.043e-05,2]
[400683899,1767778987203,179.25,8.353e-05,2]
[400683900,1767778987626,204.86,8.662e-05,2]
[400683901,1767778988059,230.47,8.971e-05,2]
[400683902,1767778988460,256.07,9.281e-05,2]
[400683903,1767778988623,-4728.26361017,0.00011014,2]
[400683904,1767778988654,-8.33570774,0.00011125,2]
[400683905,1767778988981,-526.81136418,0.00011125,2]
[400683906,1767778989013,-185.0,0.00011125,2]
[400683907,1767778989043,-300.0,0.00011125,2]
[400683908,1767779027074,7817.0,9.275e-05,2]
[400683909,1767779031500,-5000.0,0.00011015,2]
[400683911,1767779046968,-300.0,0.00011125,2]
[400683913,1767779055584,165.19,7.741e-05,2]
[400683914,1767779055990,198.23,8.051e-05,2]
[400683915,1767779056423,231.26,8.36e-05,2]
[400683916,1767779056908,264.3,8.67e-05,2]
[400683917,1767779057335,297.34,8.98e-05,2]
[400683918,1767779063272,-304.0,9.289e-05,2]
[400683919,1767779066694,-26.38,9.289e-05,2]
[400683920,1767779066722,-4947.25,0.00011015,2]
[400683921,1767779066931,-52.75,0.00011015,2]
[400683922,1767779068128,304.0,9.275e-05,2]
[400683923,1767779081077,-1464.4645495,0.00011015,2]
[400683924,1767779081105,-2307.5318977,0.00011028,2]
[400683925,1767779102878,-5000.0,0.00011015,2]
[400683927,1767779112361,218.0,0.00029222,120]
[400683928,1767779126411,178.93,7.76e-05,2]
[400683929,1767779126806,214.71,8.071e-05,2]
[400683930,1767779127227,250.5,8.381e-05,2]
[400683931,1767779127676,286.28,8.692e-05,2]
[400683932,1767779128094,322.07,9.002e-05,2]
[400683933,1767779133077,259.0,0.00030136,120]
[400683934,1767779135719,-357.85,9.312e-05,2]
[400683935,1767779135747,-2454.62670892,0.00011014,2]
[400683936,1767779135775,-300.0,0.00011125,2]
[400683937,1767779135804,-300.0,0.00011125,2]
[400683938,1767779135831,-300.0,0.00011125,2]
[400683939,1767779135859,-1181.0,0.00011125,2]
[400683940,1767779138579,2545.37329108,9.275e-05,2]
[400683946,1767779207174,-5000.0,0.00011015,2]
[400683947,1767779208099,-620.64354846,0.00011126,2]
[400683948,1767779224945,-300.0,0.00011125,2]
[400683949,1767779224986,-9400.01,0.00011126,2]
[400683950,1767779225165,-10000.01,0.00011126,2]
[400683951,1767779225585,-10000.01,0.00011126,2]
[400683966,1767779264512,160.57,8.321e-05,2]
[400683967,1767779264918,183.51,8.629e-05,2]
[400683968,1767779265856,206.45,8.938e-05,2]
[400683969,1767779266273,229.39,9.246e-05,2]
[400683971,1767779270080,-3381.14464072,0.00010905,2]
[400683972,1767779270115,-3237.72071856,0.00011015,2]
[400683973,1767779270527,-1762.27928144,0.00011015,2]
[400683974,1767779270563,-6475.45143712,0.00011126,2]
[400683976,1767779270911,-10000.01,0.00011126,2]
[400683997,1767779331368,168.59,6.54e-05,2]
[400684000,1767779331805,337.19,6.851e-05,2]
[400684003,1767779332215,505.78,7.163e-05,2]
[400684006,1767779332611,674.37,7.474e-05,2]
[400684007,1767779332641,-228.08421647,0.00010796,2]
[400684011,1767779333015,842.96,7.785e-05,2]
[400684012,1767779333477,1011.56,8.097e-05,2]
[400684013,1767779333889,1180.15,8.408e-05,2]
[400684015,1767779334318,1348.74,8.72e-05,2]
[400684016,1767779334717,1517.33,9.031e-05,2]
[400684017,1767779335106,1685.93,9.342e-05,2]
[400684018,1767779335345,-226.17522684,0.00010796,2]
[400684020,1767779336888,-288.74286163,0.00010796,2]
[400684021,1767779338453,-263.79098803,0.00010796,2]
[400684023,1767779342471,-244.80662036,0.00010796,2]
[400684025,1767779345734,-284.41096269,0.00010796,2]
[400684028,1767779350862,-249.18485632,0.00010796,2]
[400684030,1767779354518,-182.179,0.00010796,2]
[400684032,1767779357179,-172.15802451,0.00010796,2]
[400684053,1767779408432,202.25,7.206e-05,2]
[400684054,1767779408892,269.66,7.519e-05,2]
[400684055,1767779409300,255.5,7.832e-05,2]
[400684056,1767779409324,81.58,7.832e-05,2]
[400684057,1767779409668,-106.26545098,0.00010796,2]
[400684058,1767779409691,-65.4619716,0.00010796,2]
[400684059,1767779409772,404.49,8.146e-05,2]
[400684060,1767779410176,471.91,8.459e-05,2]
[400684061,1767779410662,539.32,8.772e-05,2]